fUSD/lending_fUSD_20250616
["ID","MTS","AMOUNT","RATE_DAILY","PERIOD"]
[366180089,1750101041197,-490.0,0.00015884,2]
[366180090,1750101041207,-490.0,0.00015884,2]
[366180091,1750101041216,-504.43,0.00015884,2]
[366180092,1750101041226,-490.0,0.00015884,2]
[366180093,1750101041235,-490.0,0.00015884,2]
[366180094,1750101041244,-529.18,0.00015884,2]
[366180095,1750101041254,-490.0,0.00015884,2]
[366180096,1750101041263,-490.0,0.00015884,2]
[366180097,1750101041272,-490.0,0.00015884,2]
[366180098,1750101041282,-196.35,0.00015884,2]
[366180099,1750101041292,-988.24,0.00015884,2]
[366180100,1750101041301,-490.0,0.00015884,2]
[366180101,1750101041311,-490.0,0.00015884,2]
[366180102,1750101041324,-490.0,0.00015884,2]
[366180103,1750101041333,-760.46,0.00015884,2]
[366180104,1750101041343,-181.1,0.00015884,2]
[366180105,1750101041352,-490.0,0.00015884,2]
[366180106,1750101041363,-490.0,0.00015884,2]
[366180107,1750101041374,-490.0,0.00015884,2]
[366180108,1750101041383,-490.0,0.00015884,2]
[366180109,1750101041393,-540.63,0.00015884,2]
[366180110,1750101041403,-490.0,0.00015884,2]
[366180111,1750101041413,-490.0,0.00015884,2]
[366180112,1750101041422,-492.25,0.00015884,2]
[366180113,1750101041432,-490.0,0.00015884,2]
[366180114,1750101041441,-490.0,0.00015884,2]
[366180115,1750101041451,-490.0,0.00015884,2]
[366180116,1750101041460,-490.0,0.00015884,2]
[366180117,1750101041469,-498.88,0.00015884,2]
[366180118,1750101041478,-770.97,0.00015884,2]
[366180119,1750101041487,-490.0,0.00015884,2]
[366180120,1750101041496,-490.0,0.00015884,2]
[366180121,1750101041506,-607.91345045,0.00015884,2]
[366180122,1750101041515,-490.0,0.00015884,2]
[366180123,1750101041524,-799.08,0.00015884,2]
[366180124,1750101041533,-490.0,0.00015884,2]
[366180125,1750101041543,-490.0,0.00015884,2]
[366180126,1750101041551,-490.0,0.00015884,2]
[366180127,1750101041561,-490.0,0.00015884,2]
[366180128,1750101041571,-490.0,0.00015884,2]
[366180129,1750101041580,-490.0,0.00015884,2]
[366180130,1750101041590,-490.0,0.00015884,2]
[366180131,1750101041599,-490.0,0.00015884,2]
[366180132,1750101041609,-490.0,0.00015884,2]
[366180133,1750101041619,-490.0,0.00015884,2]
[366180134,1750101041628,-735.41,0.00015884,2]
[366180135,1750101041637,-490.0,0.00015884,2]
[366180136,1750101041647,-490.0,0.00015884,2]
[366180137,1750101041657,-490.0,0.00015884,2]
[366180138,1750101041667,-490.0,0.00015884,2]
[366180139,1750101041677,-490.0,0.00015884,2]
[366180140,1750101041688,-567.55,0.00015884,2]
[366180141,1750101041697,-490.0,0.00015884,2]
[366180142,1750101041707,-490.0,0.00015884,2]
[366180143,1750101041716,-490.0,0.00015884,2]
[366180144,1750101041726,-490.0,0.00015884,2]
[366180145,1750101041735,-490.0,0.00015884,2]
[366180146,1750101041745,-490.0,0.00015884,2]
[366180147,1750101041755,-490.0,0.00015884,2]
[366180148,1750101041765,-490.0,0.00015884,2]
[366180149,1750101041775,-490.0,0.00015884,2]
[366180150,1750101041784,-490.0,0.00015884,2]
[366180151,1750101041794,-490.0,0.00015884,2]
[366180152,1750101041804,-490.0,0.00015884,2]
[366180153,1750101041814,-490.0,0.00015884,2]
[366180154,1750101041823,-490.0,0.00015884,2]
[366180155,1750101041833,-490.0,0.00015884,2]
[366180156,1750101041843,-552.85,0.00015884,2]
[366180157,1750101041853,-490.0,0.00015884,2]
[366180158,1750101041862,-490.0,0.00015884,2]
[366180159,1750101041872,-490.0,0.00015884,2]
[366180160,1750101041881,-490.0,0.00015884,2]
[366180161,1750101041890,-490.0,0.00015884,2]
[366180162,1750101041900,-490.0,0.00015884,2]
[366180163,1750101041909,-520.63479339,0.00015884,2]
[366180164,1750101041919,-490.0,0.00015884,2]
[366180165,1750101041928,-490.0,0.00015884,2]
[366180166,1750101041938,-490.0,0.00015884,2]
[366180167,1750101041949,-490.0,0.00015884,2]
[366180168,1750101041958,-506.54,0.00015884,2]
[366180169,1750101041968,-490.0,0.00015884,2]
[366180170,1750101041977,-490.0,0.00015884,2]
[366180171,1750101041987,-490.0,0.00015884,2]
[366180172,1750101041996,-490.0,0.00015884,2]
[366180173,1750101042005,-490.0,0.00015884,2]
[366180174,1750101042015,-500.0,0.00015884,2]
[366180175,1750101042024,-510.89,0.00015884,2]
[366180176,1750101042033,-490.0,0.00015884,2]
[366180177,1750101042042,-490.0,0.00015884,2]
[366180178,1750101042052,-490.0,0.00015884,2]
[366180179,1750101042062,-563.97,0.00015884,2]
[366180180,1750101042071,-493.70553023,0.00015884,2]
[366180181,1750101042081,-490.0,0.00015884,2]
[366180182,1750101042092,-490.0,0.00015884,2]
[366180183,1750101042102,-490.0,0.00015884,2]
[366180184,1750101042112,-490.0,0.00015884,2]
[366180185,1750101042122,-490.0,0.00015884,2]
[366180186,1750101042131,-490.0,0.00015884,2]
[366180187,1750101042141,-490.0,0.00015884,2]
[366180188,1750101042151,-513.4,0.00015884,2]
[366180189,1750101042161,-490.0,0.00015884,2]
[366180190,1750101042171,-490.0,0.00015884,2]
[366180191,1750101042181,-490.0,0.00015884,2]
[366180192,1750101042191,-490.0,0.00015884,2]
[366180193,1750101042201,-490.0,0.00015884,2]
[366180194,1750101042211,-490.0,0.00015884,2]
[366180195,1750101042220,-490.0,0.00015884,2]
[366180196,1750101042230,-490.0,0.00015884,2]
[366180197,1750101042239,-490.0,0.00015884,2]
[366180198,1750101042249,-490.0,0.00015884,2]
[366180199,1750101042258,-490.0,0.00015884,2]
[366180200,1750101042268,-490.0,0.00015884,2]
[366180201,1750101042278,-490.0,0.00015884,2]
[366180202,1750101042294,-490.0,0.00015884,2]
[366180203,1750101042307,-490.0,0.00015884,2]
[366180204,1750101042324,-490.0,0.00015884,2]
[366180205,1750101042338,-573.66454515,0.00015884,2]
[366180206,1750101042351,-490.0,0.00015884,2]
[366180207,1750101042363,-490.0,0.00015884,2]
[366180208,1750101042375,-490.0,0.00015884,2]
[366180209,1750101042386,-490.0,0.00015884,2]
[366180210,1750101042398,-490.0,0.00015884,2]
[366180211,1750101042412,-490.0,0.00015884,2]
[366180212,1750101042425,-500.0,0.00015884,2]
[366180213,1750101042438,-490.0,0.00015884,2]
[366180214,1750101042450,-490.0,0.00015884,2]
[366180215,1750101042462,-490.0,0.00015884,2]
[366180216,1750101042475,-490.0,0.00015884,2]
[366180217,1750101042487,-490.0,0.00015884,2]
[366180218,1750101042500,-490.0,0.00015884,2]
[366180219,1750101042511,-490.0,0.00015884,2]
[366180221,1750101042523,-490.0,0.00015884,2]
[366180222,1750101042535,-490.0,0.00015884,2]
[366180223,1750101042546,-490.0,0.00015884,2]
[366180224,1750101042557,-603.95,0.00015884,2]
[366180225,1750101042567,-490.0,0.00015884,2]
[366180227,1750101042579,-578.69,0.00015884,2]
[366180228,1750101042592,-209.65555912,0.00015884,2]
[366180229,1750101042604,-558.84,0.00015884,2]
[366180230,1750101042616,-490.0,0.00015884,2]
[366180231,1750101042628,-811.56,0.00015884,2]
[366180233,1750101042641,-490.0,0.00015884,2]
[366180235,1750101042653,-490.0,0.00015884,2]
[366180237,1750101042665,-490.0,0.00015884,2]
[366180239,1750101042678,-490.0,0.00015884,2]
[366180242,1750101042691,-654.31,0.00015884,2]
[366180244,1750101042703,-490.0,0.00015884,2]
[366180246,1750101042716,-490.0,0.00015884,2]
[366180249,1750101042728,-490.0,0.00015884,2]
[366180251,1750101042740,-992.84,0.00015884,2]
[366180253,1750101042752,-490.0,0.00015884,2]
[366180254,1750101042765,-604.36,0.00015884,2]
[366180255,1750101042781,-490.0,0.00015884,2]
[366180256,1750101042794,-701.28,0.00015884,2]
[366180257,1750101042806,-490.0,0.00015884,2]
[366180258,1750101042820,-490.0,0.00015884,2]
[366180259,1750101042832,-490.0,0.00015884,2]
[366180260,1750101042843,-490.0,0.00015884,2]
[366180261,1750101042856,-490.0,0.00015884,2]
[366180262,1750101042869,-490.0,0.00015884,2]
[366180263,1750101042880,-490.0,0.00015884,2]
[366180264,1750101042893,-490.0,0.00015884,2]
[366180265,1750101042905,-490.0,0.00015884,2]
[366180266,1750101042917,-707.36,0.00015884,2]
[366180267,1750101042931,-490.0,0.00015884,2]
[366180268,1750101042944,-490.0,0.00015884,2]
[366180269,1750101042956,-490.0,0.00015884,2]
[366180270,1750101042968,-490.0,0.00015884,2]
[366180271,1750101042980,-506.09720208,0.00015884,2]
[366180272,1750101042992,-524.03,0.00015884,2]
[366180273,1750101043003,-541.96,0.00015884,2]
[366180274,1750101043014,-490.0,0.00015884,2]
[366180275,1750101043025,-490.0,0.00015884,2]
[366180276,1750101043041,-490.0,0.00015884,2]
[366180277,1750101043057,-490.0,0.00015884,2]
[366180278,1750101043070,-490.0,0.00015884,2]
[366180279,1750101043083,-598.37,0.00015884,2]
[366180280,1750101043097,-490.0,0.00015884,2]
[366180281,1750101043109,-490.0,0.00015884,2]
[366180282,1750101043121,-490.0,0.00015884,2]
[366180283,1750101043133,-490.0,0.00015884,2]
[366180284,1750101043143,-490.0,0.00015884,2]
[366180285,1750101043154,-490.0,0.00015884,2]
[366180286,1750101043165,-490.0,0.00015884,2]
[366180287,1750101043177,-535.42013049,0.00015884,2]
[366180288,1750101043191,-490.0,0.00015884,2]
[366180289,1750101043205,-490.0,0.00015884,2]
[366180290,1750101043218,-490.0,0.00015884,2]
[366180291,1750101043230,-617.51,0.00015884,2]
[366180292,1750101043242,-633.46,0.00015884,2]
[366180293,1750101043252,-490.0,0.00015884,2]
[366180294,1750101043263,-490.0,0.00015884,2]
[366180295,1750101043275,-490.0,0.00015884,2]
[366180296,1750101043285,-658.26,0.00015884,2]
[366180297,1750101043297,-490.0,0.00015884,2]
[366180298,1750101043309,-490.0,0.00015884,2]
[366180299,1750101043323,-490.0,0.00015884,2]
[366180300,1750101043335,-490.0,0.00015884,2]
[366180301,1750101043346,-490.7,0.00015884,2]
[366180302,1750101043357,-490.0,0.00015884,2]
[366180303,1750101043368,-490.0,0.00015884,2]
[366180304,1750101043379,-831.69,0.00015884,2]
[366180305,1750101043390,-490.0,0.00015884,2]
[366180306,1750101043404,-490.0,0.00015884,2]
[366180307,1750101043415,-490.0,0.00015884,2]
[366180308,1750101043426,-1934.72,0.00015884,2]
[366180309,1750101043439,-490.0,0.00015884,2]
[366180310,1750101043450,-490.0,0.00015884,2]
[366180311,1750101043462,-490.0,0.00015884,2]
[366180312,1750101043474,-533.25,0.00015884,2]
[366180313,1750101043485,-490.0,0.00015884,2]
[366180314,1750101043497,-650.11,0.00015884,2]
[366180315,1750101043513,-469.36178011,0.00015884,2]
[366180316,1750101043525,-909.86,0.00015884,2]
[366180317,1750101043537,-490.0,0.00015884,2]
[366180318,1750101043549,-882.04,0.00015884,2]
[366180319,1750101043561,-812.24,0.00015884,2]
[366180320,1750101043572,-490.0,0.00015884,2]
[366180321,1750101043584,-1578.99,0.00015884,2]
[366180322,1750101043595,-490.0,0.00015884,2]
[366180323,1750101043607,-490.0,0.00015884,2]
[366180324,1750101043619,-490.0,0.00015884,2]
[366180325,1750101043630,-586.72,0.00015884,2]
[366180326,1750101043642,-756.53,0.00015884,2]
[366180327,1750101043654,-490.0,0.00015884,2]
[366180328,1750101043666,-490.0,0.00015884,2]
[366180329,1750101043678,-490.0,0.00015884,2]
[366180330,1750101043690,-546.25,0.00015884,2]
[366180331,1750101043701,-490.0,0.00015884,2]
[366180332,1750101043713,-719.64,0.00015884,2]
[366180333,1750101043725,-490.0,0.00015884,2]
[366180334,1750101043736,-490.0,0.00015884,2]
[366180335,1750101043748,-490.0,0.00015884,2]
[366180336,1750101043760,-490.0,0.00015884,2]
[366180337,1750101043772,-490.0,0.00015884,2]
[366180338,1750101043784,-490.0,0.00015884,2]
[366180339,1750101043807,-874.16,0.00015884,2]
[366180340,1750101043824,-494.46471504,0.00015884,2]
[366180341,1750101043838,-588.68,0.00015884,2]
[366180342,1750101043852,-637.33,0.00015884,2]
[366180343,1750101043865,-490.0,0.00015884,2]
[366180344,1750101043881,-507.22,0.00015884,2]
[366180345,1750101043895,-741.94,0.00015884,2]
[366180346,1750101043908,-490.0,0.00015884,2]
[366180347,1750101043921,-490.0,0.00015884,2]
[366180348,1750101043934,-841.67,0.00015884,2]
[366180349,1750101043947,-490.0,0.00015884,2]
[366180350,1750101043961,-490.0,0.00015884,2]
[366180351,1750101043974,-3300.15,0.00015884,2]
[366180352,1750101043987,-490.0,0.00015884,2]
[366180353,1750101044000,-490.0,0.00015884,2]
[366180354,1750101044013,-490.0,0.00015884,2]
[366180355,1750101044026,-490.0,0.00015884,2]
[366180356,1750101044038,-490.0,0.00015884,2]
[366180357,1750101044051,-942.79,0.00015884,2]
[366180358,1750101044063,-490.0,0.00015884,2]
[366180359,1750101044075,-490.0,0.00015884,2]
[366180360,1750101044087,-490.0,0.00015884,2]
[366180361,1750101044100,-490.0,0.00015884,2]
[366180362,1750101044112,-3206.84,0.00015884,2]
[366180363,1750101044124,-490.0,0.00015884,2]
[366180364,1750101044136,-490.0,0.00015884,2]
[366180365,1750101044148,-490.0,0.00015884,2]
[366180366,1750101044160,-490.0,0.00015884,2]
[366180367,1750101044172,-1380.3,0.00015884,2]
[366180368,1750101044184,-490.0,0.00015884,2]
[366180369,1750101044197,-490.0,0.00015884,2]
[366180370,1750101044209,-491.10403654,0.00015884,2]
[366180371,1750101044228,-490.0,0.00015884,2]
[366180372,1750101044241,-490.0,0.00015884,2]
[366180373,1750101044254,-2201.58,0.00015884,2]
[366180374,1750101044267,-490.0,0.00015884,2]
[366180375,1750101044280,-490.0,0.00015884,2]
[366180376,1750101044293,-596.99,0.00015884,2]
[366180377,1750101044307,-490.0,0.00015884,2]
[366180378,1750101044323,-490.0,0.00015884,2]
[366180379,1750101044336,-490.0,0.00015884,2]
[366180380,1750101044348,-302.95512836,0.00015884,2]
[366180381,1750101044361,-490.0,0.00015884,2]
[366180382,1750101044373,-392.46964803,0.00015884,2]
[366180383,1750101044385,-490.0,0.00015884,2]
[366180384,1750101044398,-490.0,0.00015884,2]
[366180385,1750101044410,-490.0,0.00015884,2]
[366180386,1750101044422,-490.0,0.00015884,2]
[366180387,1750101044435,-498.62,0.00015884,2]
[366180388,1750101044448,-490.0,0.00015884,2]
[366180389,1750101044460,-490.0,0.00015884,2]
[366180390,1750101044473,-1122.87,0.00015884,2]
[366180391,1750101044487,-490.0,0.00015884,2]
[366180392,1750101044499,-580.12,0.00015884,2]
[366180393,1750101044511,-490.0,0.00015884,2]
[366180394,1750101044523,-490.0,0.00015884,2]
[366180395,1750101044536,-595.07,0.00015884,2]
[366180396,1750101044549,-921.22,0.00015884,2]
[366180397,1750101044562,-490.0,0.00015884,2]
[366180398,1750101044575,-490.0,0.00015884,2]
[366180399,1750101044587,-490.0,0.00015884,2]
[366180400,1750101044600,-593.06,0.00015884,2]
[366180401,1750101044613,-589.12,0.00015884,2]
[366180402,1750101044625,-495.38005761,0.00015884,2]
[366180403,1750101044637,-1533.43,0.00015884,2]
[366180404,1750101044656,-490.0,0.00015884,2]
[366180405,1750101044668,-490.0,0.00015884,2]
[366180406,1750101044681,-490.0,0.00015884,2]
[366180407,1750101044693,-490.0,0.00015884,2]
[366180408,1750101044705,-490.0,0.00015884,2]
[366180409,1750101044718,-8111.1,0.00015884,2]
[366180410,1750101044731,-604.22,0.00015884,2]
[366180411,1750101044744,-490.0,0.00015884,2]
[366180412,1750101044757,-413.91902539,0.00015884,2]
[366180413,1750101044770,-2826.4,0.00015884,2]
[366180414,1750101044783,-490.0,0.00015884,2]
[366180415,1750101044796,-496.79960597,0.00015884,2]
[366180416,1750101044810,-490.0,0.00015884,2]
[366180417,1750101044823,-490.0,0.00015884,2]
[366180418,1750101044835,-490.0,0.00015884,2]
[366180419,1750101044848,-599.51,0.00015884,2]
[366180420,1750101044860,-490.0,0.00015884,2]
[366180421,1750101044872,-490.0,0.00015884,2]
[366180422,1750101044885,-2167.73,0.00015884,2]
[366180423,1750101044897,-490.0,0.00015884,2]
[366180424,1750101044910,-490.0,0.00015884,2]
[366180425,1750101044922,-490.0,0.00015884,2]
[366180426,1750101044934,-490.0,0.00015884,2]
[366180427,1750101044945,-490.0,0.00015884,2]
[366180428,1750101044958,-5550.4,0.00015884,2]
[366180429,1750101044970,-490.0,0.00015884,2]
[366180430,1750101044982,-490.0,0.00015884,2]
[366180431,1750101044994,-490.0,0.00015884,2]
[366180432,1750101045007,-189.27,0.00015884,2]
[366180433,1750101045018,-547.83,0.00015884,2]
[366180434,1750101045031,-490.0,0.00015884,2]
[366180435,1750101045043,-1453.16,0.00015884,2]
[366180436,1750101045055,-490.0,0.00015884,2]
[366180437,1750101045072,-490.0,0.00015884,2]
[366180438,1750101045083,-490.0,0.00015884,2]
[366180439,1750101045095,-623.51,0.00015884,2]
[366180440,1750101045107,-490.0,0.00015884,2]
[366180441,1750101045119,-490.0,0.00015884,2]
[366180442,1750101045131,-490.0,0.00015884,2]
[366180443,1750101045144,-789.14,0.00015884,2]
[366180444,1750101045156,-490.0,0.00015884,2]
[366180445,1750101045169,-571.48,0.00015884,2]
[366180446,1750101045182,-200.0,0.00015885,2]
[366180447,1750101045194,-490.0,0.00015885,2]
[366180448,1750101045207,-490.0,0.00015885,2]
[366180449,1750101045219,-490.0,0.00015885,2]
[366180450,1750101045231,-490.0,0.00015885,2]
[366180451,1750101045243,-490.0,0.00015885,2]
[366180452,1750101045255,-490.0,0.00015885,2]
[366180453,1750101045267,-490.0,0.00015885,2]
[366180454,1750101045279,-490.0,0.00015885,2]
[366180455,1750101045291,-490.0,0.00015885,2]
[366180456,1750101045303,-490.0,0.00015885,2]
[366180457,1750101045316,-490.0,0.00015885,2]
[366180458,1750101045329,-490.0,0.00015885,2]
[366180459,1750101045340,-490.0,0.00015885,2]
[366180460,1750101045352,-490.0,0.00015885,2]
[366180461,1750101045364,-490.0,0.00015885,2]
[366180462,1750101045375,-490.0,0.00015885,2]
[366180463,1750101045386,-490.0,0.00015885,2]
[366180464,1750101045399,-490.0,0.00015885,2]
[366180465,1750101045411,-490.0,0.00015885,2]
[366180466,1750101045423,-490.0,0.00015885,2]
[366180467,1750101045435,-490.0,0.00015885,2]
[366180468,1750101045447,-490.0,0.00015885,2]
[366180469,1750101045458,-490.0,0.00015885,2]
[366180470,1750101045469,-200.0,0.00015885,2]
[366180471,1750101045480,-490.0,0.00015885,2]
[366180472,1750101045492,-572.14,0.00015885,2]
[366180473,1750101045515,-490.0,0.00015885,2]
[366180474,1750101045529,-471.41337857,0.00015885,2]
[366180475,1750101045542,-938.11,0.00015885,2]
[366180476,1750101045555,-490.0,0.00015885,2]
[366180477,1750101045568,-601.44,0.00015885,2]
[366180480,1750101045581,-490.0,0.00015885,2]
[366180482,1750101045593,-1030.29,0.00015885,2]
[366180484,1750101045606,-638.76,0.00015885,2]
[366180486,1750101045618,-761.85,0.00015885,2]
[366180488,1750101045631,-530.89,0.00015885,2]
[366180489,1750101045643,-630.77,0.00015885,2]
[366180534,1750101046437,-792.69,0.00015885,2]
[366180535,1750101046483,-490.0,0.00015885,2]
[366180536,1750101046512,-783.11,0.00015885,2]
[366180537,1750101046538,-800.37,0.00015885,2]
[366180538,1750101046560,-757.7,0.00015885,2]
[366180539,1750101046570,-514.38,0.00015885,2]
[366180540,1750101046580,-588.44,0.00015885,2]
[366180541,1750101046590,-1175.82,0.00015885,2]
[366180542,1750101046600,-200.0,0.00015885,2]
[366180543,1750101046610,-151.0,0.00015885,2]
[366180544,1750101046620,-200.0,0.00015885,2]
[366180545,1750101046629,-152.0,0.00015889,3]
[366180546,1750101046640,-800.0,0.000159,5]
[366180547,1750101046651,-203.56227755,0.00015908,2]
[366180548,1750101046661,-151.0,0.00015921,2]
[366180549,1750101046671,-384.0,0.00015921,2]
[366180550,1750101046680,-1236.0,0.00015928,2]
[366180551,1750101046690,-270.0,0.0001593,3]
[366180552,1750101046700,-1092.19935781,0.00015931,2]
[366180553,1750101046709,-290.0,0.00015936,2]
[366180554,1750101046719,-774.0,0.00015936,2]
[366180555,1750101046729,-224.0,0.00015936,2]
[366180556,1750101046739,-1511.0,0.00015941,2]
[366180557,1750101046749,-999.0,0.00015941,2]
[366180558,1750101046759,-282.09222139,0.00015949,2]
[366180559,1750101046769,-5757.2364,0.00015949,2]
[366180560,1750101046778,-182.73557559,0.00015955,2]
[366180561,1750101046788,-343.0,0.00015961,2]
[366180562,1750101046798,-659.0,0.00015961,2]
[366180563,1750101046807,-235.0,0.00016,2]
[366180564,1750101046817,-203.56227755,0.00016032,2]
[366180565,1750101046831,-200.0,0.00016044,2]
[366180566,1750101046840,-200.0,0.00016044,2]
[366180567,1750101046850,-200.0,0.00016044,2]
[366180568,1750101046860,-200.0,0.00016044,2]
[366180569,1750101046870,-500.0,0.00016047,2]
[366180570,1750101046880,-490.0,0.00016048,2]
[366180571,1750101046890,-490.0,0.00016048,2]
[366180572,1750101046900,-490.0,0.00016048,2]
[366180573,1750101046910,-490.0,0.00016048,2]
[366180574,1750101046919,-490.0,0.00016048,2]
[366180575,1750101046929,-490.0,0.00016048,2]
[366180576,1750101046940,-490.0,0.00016048,2]
[366180577,1750101046951,-988.24,0.00016048,2]
[366180578,1750101046962,-760.46,0.00016048,2]
[366180579,1750101046971,-490.0,0.00016048,2]
[366180580,1750101046982,-264.09459397,0.00016048,2]
[366180581,1750101047006,-492.25,0.00016048,2]
[366180582,1750101047019,-799.08,0.00016048,2]
[366180583,1750101047031,-655.393685,0.00016048,2]
[366180584,1750101047043,-490.0,0.00016048,2]
[366180585,1750101047056,-735.41,0.00016048,2]
[366180586,1750101047070,-1412.365256,0.00016048,2]
[366180587,1750101047080,-490.0,0.00016048,2]
[366180588,1750101047091,-490.0,0.00016048,2]
[366180589,1750101047102,-490.0,0.00016048,2]
[366180590,1750101047113,-563.97,0.00016048,2]
[366180591,1750101047124,-490.0,0.00016048,2]
[366180592,1750101047134,-490.0,0.00016048,2]
[366180593,1750101047144,-490.0,0.00016048,2]
[366180594,1750101047155,-490.0,0.00016048,2]
[366180595,1750101047165,-279.26509218,0.00016048,2]
[366180596,1750101047177,-603.95,0.00016048,2]
[366180597,1750101047188,-811.56,0.00016048,2]
[366180598,1750101047198,-654.31,0.00016048,2]
[366180599,1750101047208,-490.0,0.00016048,2]
[366180600,1750101047219,-490.0,0.00016048,2]
[366180601,1750101047229,-490.0,0.00016048,2]
[366180602,1750101047239,-701.28,0.00016048,2]
[366180603,1750101047250,-490.0,0.00016048,2]
[366180604,1750101047260,-490.0,0.00016048,2]
[366180605,1750101047270,-490.0,0.00016048,2]
[366180606,1750101047280,-524.03,0.00016048,2]
[366180607,1750101047290,-490.0,0.00016048,2]
[366180608,1750101047300,-229.39736527,0.00016048,2]
[366180609,1750101047310,-598.37,0.00016048,2]
[366180610,1750101047322,-490.0,0.00016048,2]
[366180611,1750101047331,-490.0,0.00016048,2]
[366180612,1750101047341,-617.51,0.00016048,2]
[366180613,1750101047353,-658.26,0.00016048,2]
[366180614,1750101047364,-490.7,0.00016048,2]
[366180615,1750101047377,-1000.0,0.00016048,2]
[366180616,1750101047389,-490.0,0.00016048,2]
[366180617,1750101047402,-490.0,0.00016048,2]
[366180618,1750101047413,-662.63,0.00016048,2]
[366180619,1750101047423,-1041.63,0.00016048,2]
[366180620,1750101047441,-644.55,0.00016048,2]
[366180621,1750101047454,-490.0,0.00016048,2]
[366180622,1750101047466,-490.0,0.00016048,2]
[366180623,1750101047476,-626.44,0.00016048,2]
[366180624,1750101047488,-523.03,0.00016048,2]
[366180625,1750101047498,-1215.5,0.00016048,2]
[366180626,1750101047509,-812.24,0.00016048,2]
[366180627,1750101047520,-570.22,0.00016048,2]
[366180628,1750101047531,-2581.38,0.00016048,2]
[366180629,1750101047542,-550.36,0.00016048,2]
[366180630,1750101047552,-490.0,0.00016048,2]
[366180631,1750101047563,-1809.0,0.00016048,2]
[366180632,1750101047574,-756.53,0.00016048,2]
[366180633,1750101047584,-920.03,0.00016048,2]
[366180634,1750101047595,-490.0,0.00016048,2]
[366180635,1750101047606,-490.0,0.00016048,2]
[366180636,1750101047616,-1805.47,0.00016048,2]
[366180637,1750101047627,-786.84,0.00016048,2]
[366180638,1750101047638,-1518.17,0.00016048,2]
[366180639,1750101047648,-490.0,0.00016048,2]
[366180640,1750101047658,-790.05,0.00016048,2]
[366180641,1750101047669,-490.0,0.00016048,2]
[366180642,1750101047680,-1055.34,0.00016048,2]
[366180643,1750101047690,-2330.39,0.00016048,2]
[366180644,1750101047701,-588.68,0.00016048,2]
[366180645,1750101047712,-1235.64,0.00016048,2]
[366180646,1750101047722,-490.0,0.00016048,2]
[366180647,1750101047733,-490.0,0.00016048,2]
[366180648,1750101047745,-582.63,0.00016048,2]
[366180649,1750101047755,-719.98,0.00016048,2]
[366180650,1750101047766,-741.94,0.00016048,2]
[366180651,1750101047776,-663.04,0.00016048,2]
[366180652,1750101047787,-841.67,0.00016048,2]